fUST/lending_fUST_20250427
["ID","MTS","AMOUNT","RATE_DAILY","PERIOD"]
[359119802,1745716242685,-500.0,0.00018436,2]
[359119803,1745716242695,-457.31,0.0001863,2]
[359119804,1745716242704,-400.0,0.0001863,2]
[359119805,1745716242714,-400.0,0.0001863,2]
[359119806,1745716242723,-400.0,0.0001863,2]
[359119808,1745716242734,-400.0,0.0001863,2]
[359119809,1745716242744,-400.0,0.0001863,2]
[359119810,1745716242753,-400.0,0.0001863,2]
[359119811,1745716242762,-400.0,0.0001863,2]
[359119812,1745716242771,-400.0,0.0001863,2]
[359119814,1745716242781,-773.76,0.0001863,2]
[359119816,1745716242792,-564.18,0.0001863,2]
[359119818,1745716242803,-457.31,0.00018904,2]
[359119820,1745716242815,-220.53504241,0.00018904,2]
[359119821,1745716242824,-400.0,0.00018904,2]
[359119822,1745716242834,-400.0,0.00018904,2]
[359119823,1745716242844,-400.0,0.00018904,2]
[359119824,1745716242854,-201.93957842,0.00018904,2]
[359119825,1745716242863,-400.0,0.00018904,2]
[359119826,1745716242873,-400.0,0.00018904,2]
[359119827,1745716242884,-400.0,0.00018904,2]
[359119828,1745716242895,-773.76,0.00018904,2]
[359119829,1745716242905,-564.18,0.00018904,2]
[359119830,1745716242914,-457.31,0.00019178,2]
[359119831,1745716242924,-400.0,0.00019178,2]
[359119832,1745716242933,-400.0,0.00019178,2]
[359119833,1745716242942,-400.0,0.00019178,2]
[359119834,1745716242952,-400.0,0.00019178,2]
[359119835,1745716242962,-400.0,0.00019178,2]
[359119836,1745716242972,-400.0,0.00019178,2]
[359119837,1745716242982,-773.76,0.00019178,2]
[359119838,1745716242991,-564.18,0.00019178,2]
[359119839,1745716243001,-300.0,0.00019178,2]
[359119840,1745716243011,-500.0,0.00019209,2]
[359119841,1745716243020,-507.07321883,0.00019209,2]
[359119842,1745716243030,-209.42717831,0.00019312,2]
[359119843,1745716243039,-457.31,0.00019452,2]
[359119844,1745716243051,-400.0,0.00019452,2]
[359119845,1745716243062,-244.78580769,0.00019452,2]
[359119846,1745716243071,-400.0,0.00019452,2]
[359119847,1745716243081,-400.0,0.00019452,2]
[359119848,1745716243091,-476.02056036,0.00019452,2]
[359119849,1745716243100,-400.0,0.00019452,2]
[359119850,1745716243110,-773.76,0.00019452,2]
[359119851,1745716243119,-564.18,0.00019452,2]
[359119852,1745716243129,-457.31,0.00019726,2]
[359119853,1745716243138,-201.75112557,0.00019726,2]
[359119854,1745716243147,-400.0,0.00019726,2]
[359119855,1745716243157,-400.0,0.00019726,2]
[359119856,1745716243166,-400.0,0.00019726,2]
[359119857,1745716243176,-773.76,0.00019726,2]
[359119858,1745716243186,-564.18,0.00019726,2]
[359119859,1745716243195,-203.216,0.00019832,2]
[359119860,1745716243204,-250.0,0.00019832,2]
[359119861,1745716243214,-246.67,0.00019832,2]
[359119862,1745716243223,-256.402,0.00019832,2]
[359119863,1745716243232,-172.678,0.00019832,2]
[359119864,1745716243241,-457.31,0.0002,2]
[359119865,1745716243251,-400.0,0.0002,2]
[359119866,1745716243260,-400.0,0.0002,2]
[359119867,1745716243269,-400.0,0.0002,2]
[359119868,1745716243279,-773.76,0.0002,2]
[359119869,1745716243289,-564.18,0.0002,2]
[359119870,1745716243299,-1000.0,0.00020068,2]
[359119871,1745716243308,-457.31,0.00020273,2]
[359119872,1745716243317,-400.0,0.00020273,2]
[359119873,1745716243326,-533.8557565,0.00020273,2]
[359119874,1745716243336,-400.0,0.00020273,2]
[359119875,1745716243345,-773.76,0.00020273,2]
[359119876,1745716243354,-564.18,0.00020273,2]
[359119877,1745716243364,-457.31,0.00020547,2]
[359119878,1745716243373,-400.0,0.00020547,2]
[359119879,1745716243383,-400.0,0.00020547,2]
[359119880,1745716243392,-773.76,0.00020547,2]
[359119881,1745716243401,-564.18,0.00020547,2]
[359119882,1745716243410,-209.42717831,0.00020782,3]
[359119883,1745716243420,-457.31,0.00020821,2]
[359119884,1745716243429,-400.0,0.00020821,2]
[359119885,1745716243440,-411.04250557,0.00020821,2]
[359119886,1745716243449,-773.76,0.00020821,2]
[359119887,1745716243458,-564.18,0.00020821,2]
[359119888,1745716243468,-600.0,0.00020822,2]
[359119889,1745716243478,-3958.94,0.00021,2]
[359119890,1745716243487,-150.0,0.00021,5]
[359119891,1745716243497,-157.45,0.00021,2]
[359119892,1745716243506,-283.89203113,0.00021072,2]
[359119893,1745716243516,-1000.0,0.00021087,2]
[359119894,1745716243526,-457.31,0.00021095,2]
[359119895,1745716243535,-400.0,0.00021095,2]
[359119896,1745716243545,-773.76,0.00021095,2]
[359119897,1745716243554,-564.18,0.00021095,2]
[359119898,1745716243566,-1000.0,0.00021164,2]
[359119899,1745716243575,-1000.0,0.00021225,2]
[359119900,1745716243584,-457.31,0.00021369,2]
[359119901,1745716243595,-400.0,0.00021369,2]
[359119902,1745716243604,-773.76,0.00021369,2]
[359119903,1745716243613,-564.18,0.00021369,2]
[359119904,1745716243623,-2816.8214417,0.00021602,2]
[359119905,1745716243632,-457.31,0.00021643,2]
[359119906,1745716243642,-400.0,0.00021643,2]
[359119907,1745716243652,-773.76,0.00021643,2]
[359119908,1745716243661,-564.18,0.00021643,2]
[359119909,1745716243670,-160.0,0.00021917,2]
[359119910,1745716243680,-457.31,0.00021917,2]
[359119911,1745716243689,-400.0,0.00021917,2]
[359119912,1745716243698,-773.76,0.00021917,2]
[359119913,1745716243707,-564.18,0.00021917,2]
[359119914,1745716243717,-1000.0,0.00021952,2]
[359119915,1745716243726,-500.0,0.00022,2]
[359119916,1745716243736,-500.0,0.00022,2]
[359119917,1745716243745,-634.0,0.000221,2]
[359119918,1745716243755,-457.31,0.00022191,2]
[359119919,1745716243764,-400.0,0.00022191,2]
[359119920,1745716243776,-773.76,0.00022191,2]
[359119921,1745716243786,-564.18,0.00022191,2]
[359119922,1745716243798,-264.402929,0.00022226,2]
[359119923,1745716243808,-209.42717831,0.00022253,3]
[359119924,1745716243818,-1000.0,0.0002226,2]
[359119925,1745716243828,-208.85990991,0.00022356,2]
[359119926,1745716243838,-457.31,0.00022465,2]
[359119927,1745716243848,-413.42834738,0.00022465,2]
[359119928,1745716243857,-773.76,0.00022465,2]
[359119929,1745716243867,-564.18,0.00022465,2]
[359119930,1745716243876,-900.0,0.00022466,2]
[359119931,1745716243886,-1000.0,0.00022696,2]
[359119932,1745716243896,-1000.0,0.00022696,2]
[359119933,1745716243905,-151.0,0.0002273,7]
[359119934,1745716243914,-151.0,0.0002273,7]
[359119935,1745716243923,-457.38081422,0.00022739,2]
[359119936,1745716243933,-773.81144277,0.00022739,2]
[359119937,1745716243942,-564.35250855,0.00022739,2]
[359119938,1745716243951,-1000.0,0.00022759,2]
[359119939,1745716243961,-1000.0,0.00022759,2]
[359119940,1745716243972,-150.0,0.00022832,2]
[359119941,1745716243981,-2200.0,0.000231,2]
[359119942,1745716243990,-160.0,0.00023287,2]
[359119943,1745716244000,-1000.0,0.00023356,2]
[359119944,1745716244010,-200.0,0.00023399,7]
[359119945,1745716244019,-227.10135886,0.00023399,7]
[359119946,1745716244029,-573.9,0.00023455,15]
[359119947,1745716244039,-5000.0,0.00023602,2]
[359119948,1745716244049,-209.42717831,0.00023724,4]
[359119949,1745716244059,-1000.0,0.00023916,2]
[359119950,1745716244069,-151.0,0.00024,7]
[359119951,1745716244079,-151.0,0.00024,7]
[359119952,1745716244088,-908.0,0.00024,2]
[359119953,1745716244098,-163.402258,0.00024,4]
[359119954,1745716244108,-1200.0,0.0002411,2]
[359119955,1745716244120,-253.2285887,0.00024205,2]
[359119956,1745716244130,-1038.82536862,0.0002435,2]
[359119957,1745716244140,-2000.0,0.000244,2]
[359119958,1745716244149,-160.0,0.000244,15]
[359119959,1745716244159,-2000.0,0.000244,2]
[359119960,1745716244169,-318.9499,0.000244,2]
[359119961,1745716244179,-318.9499,0.000244,2]
[359119962,1745716244191,-59608.2689695,0.0002445,2]
[359119963,1745716244472,-865.73,0.00016438,2]
[359119964,1745716244482,-865.73,0.00016712,2]
[359119965,1745716244492,-865.73,0.00016986,2]
[359119966,1745716244502,-865.73,0.0001726,2]
[359119967,1745716244646,-865.73,0.00017534,2]
[359119968,1745716244657,-865.73,0.00017808,2]
[359119969,1745716244667,-865.73,0.00018082,2]
[359119970,1745716244677,-400.0,0.0001863,2]
[359119971,1745716244686,-400.0,0.00018904,2]
[359119972,1745716244696,-400.0,0.00019178,2]
[359119973,1745716244706,-400.0,0.00019452,2]
[359119974,1745716244715,-400.0,0.00019726,2]
[359119975,1745716244724,-198.3596287,0.0002,2]
[359119976,1745716244734,-46191.05540866,0.0002445,2]
[359119977,1745716244743,-151.0,0.0002445,7]
[359119978,1745716244753,-151.0,0.0002445,7]
[359119979,1745716244763,-151.0,0.0002445,7]
[359119980,1745716244772,-151.0,0.0002445,7]
[359119981,1745716244783,-415.97117751,0.00024452,2]
[359119982,1745716244797,-584.02882249,0.00024452,2]
[359119983,1745716244807,-500.0,0.00024473,2]
[359119984,1745716244816,-500.0,0.00024473,2]
[359119985,1745716244826,-500.0,0.00024473,2]
[359119986,1745716244836,-500.0,0.00024473,2]
[359119987,1745716244847,-500.55,0.000245,120]
[359119988,1745716244857,-500.0,0.000245,2]
[359119989,1745716244866,-500.0,0.000245,2]
[359119990,1745716244877,-500.0,0.000245,2]
[359119991,1745716244887,-500.0,0.000245,2]
[359119992,1745716244897,-500.0,0.000245,2]
[359119993,1745716244906,-531.69542012,0.000245,2]
[359119994,1745716244915,-2000.0,0.000246,2]
[359119995,1745716244925,-153.0,0.0002463,2]
[359119996,1745716244935,-153.0,0.0002463,2]
[359119997,1745716244944,-153.0,0.0002463,2]
[359119998,1745716244954,-153.0,0.0002463,2]
[359119999,1745716244964,-153.0,0.0002463,2]
[359120000,1745716244974,-153.0,0.0002463,2]
[359120001,1745716244983,-153.0,0.0002463,2]
[359120002,1745716244993,-153.0,0.0002463,2]
[359120003,1745716245002,-153.0,0.0002463,2]
[359120004,1745716245011,-153.0,0.0002463,2]
[359120005,1745716245020,-153.0,0.0002463,2]
[359120006,1745716245029,-153.0,0.0002463,2]
[359120007,1745716245039,-153.0,0.0002463,2]
[359120008,1745716245049,-153.0,0.0002463,2]
[359120009,1745716245059,-153.0,0.0002463,2]
[359120010,1745716245069,-153.0,0.0002463,2]
[359120011,1745716245078,-153.0,0.0002463,2]
[359120012,1745716245090,-153.0,0.0002463,2]
[359120013,1745716245101,-153.0,0.0002463,2]
[359120014,1745716245111,-153.0,0.0002463,2]
[359120015,1745716245122,-153.0,0.0002463,2]
[359120016,1745716245133,-153.0,0.0002463,2]
[359120017,1745716245143,-153.0,0.0002463,2]
[359120018,1745716245153,-153.0,0.0002463,2]
[359120019,1745716245163,-153.0,0.0002463,2]
[359120020,1745716245173,-153.0,0.0002463,2]
[359120021,1745716245182,-153.0,0.0002463,2]
[359120022,1745716245191,-153.0,0.0002463,2]
[359120023,1745716245201,-153.0,0.0002463,2]
[359120024,1745716245210,-153.0,0.0002463,2]
[359120025,1745716245220,-153.0,0.0002463,2]
[359120026,1745716245229,-153.0,0.0002463,2]
[359120027,1745716245239,-153.0,0.0002463,2]
[359120028,1745716245248,-153.0,0.0002463,2]
[359120029,1745716245258,-153.0,0.0002463,2]
[359120030,1745716245267,-153.0,0.0002463,2]
[359120031,1745716245277,-153.0,0.0002463,2]
[359120032,1745716245288,-153.0,0.0002463,2]
[359120033,1745716245298,-153.0,0.0002463,2]
[359120034,1745716245308,-153.0,0.0002463,2]
[359120035,1745716245317,-153.0,0.0002463,2]
[359120036,1745716245327,-153.0,0.0002463,2]
[359120037,1745716245336,-153.0,0.0002463,2]
[359120038,1745716245345,-153.0,0.0002463,2]
[359120039,1745716245355,-153.0,0.0002463,2]
[359120040,1745716245364,-153.0,0.0002463,2]
[359120041,1745716245374,-153.0,0.0002463,2]
[359120042,1745716245383,-153.0,0.0002463,2]
[359120043,1745716245393,-153.0,0.0002463,2]
[359120044,1745716245403,-153.0,0.0002463,2]
[359120045,1745716245412,-153.0,0.0002463,2]
[359120046,1745716245421,-153.0,0.0002463,2]
[359120047,1745716245431,-153.0,0.0002463,2]
[359120048,1745716245440,-153.0,0.0002463,2]
[359120049,1745716245449,-153.0,0.0002463,2]
[359120050,1745716245459,-153.0,0.0002463,2]
[359120051,1745716245468,-153.0,0.0002463,2]
[359120052,1745716245478,-153.0,0.0002463,2]
[359120053,1745716245488,-153.0,0.0002463,2]
[359120054,1745716245497,-153.0,0.0002463,2]
[359120055,1745716245507,-153.0,0.0002463,2]
[359120056,1745716245517,-153.0,0.0002463,2]
[359120057,1745716245527,-153.0,0.0002463,2]
[359120058,1745716245536,-153.0,0.0002463,2]
[359120059,1745716245546,-153.0,0.0002463,2]
[359120060,1745716245556,-153.0,0.0002463,2]
[359120061,1745716245566,-153.0,0.0002463,2]
[359120062,1745716245576,-153.0,0.0002463,2]
[359120063,1745716245585,-153.0,0.0002463,2]
[359120064,1745716245594,-153.0,0.0002463,2]
[359120065,1745716245605,-153.0,0.0002463,2]
[359120066,1745716245614,-153.0,0.0002463,2]
[359120067,1745716245626,-153.0,0.0002463,2]
[359120068,1745716245636,-153.0,0.0002463,2]
[359120069,1745716245647,-153.0,0.0002463,2]
[359120071,1745716245656,-153.0,0.0002463,2]
[359120073,1745716245666,-153.0,0.0002463,2]
[359120075,1745716245675,-153.0,0.0002463,2]
[359120077,1745716245685,-153.0,0.0002463,2]
[359120079,1745716245695,-153.0,0.0002463,2]
[359120081,1745716245704,-153.0,0.0002463,2]
[359120083,1745716245714,-153.0,0.0002463,2]
[359120085,1745716245723,-153.0,0.0002463,2]
[359120087,1745716245732,-153.0,0.0002463,2]
[359120089,1745716245742,-153.0,0.0002463,2]
[359120091,1745716245751,-153.0,0.0002463,2]
[359120093,1745716245760,-153.0,0.0002463,2]
[359120095,1745716245770,-153.0,0.0002463,2]
[359120097,1745716245781,-153.0,0.0002463,2]
[359120098,1745716245790,-153.0,0.0002463,2]
[359120100,1745716245805,-153.0,0.0002463,2]
[359120103,1745716245817,-153.0,0.0002463,2]
[359120105,1745716245826,-153.0,0.0002463,2]
[359120107,1745716245835,-153.0,0.0002463,2]
[359120108,1745716245846,-153.0,0.0002463,2]
[359120110,1745716245856,-153.0,0.0002463,2]
[359120112,1745716245865,-153.0,0.0002463,2]
[359120114,1745716245875,-153.0,0.0002463,2]
[359120116,1745716245884,-153.0,0.0002463,2]
[359120118,1745716245894,-153.0,0.0002463,2]
[359120120,1745716245904,-153.0,0.0002463,2]
[359120122,1745716245914,-153.0,0.0002463,2]
[359120124,1745716245924,-153.0,0.0002463,2]
[359120126,1745716245933,-153.0,0.0002463,2]
[359120127,1745716245943,-153.0,0.0002463,2]
[359120130,1745716245952,-153.0,0.0002463,2]
[359120132,1745716245963,-153.0,0.0002463,2]
[359120134,1745716245972,-153.0,0.0002463,2]
[359120136,1745716245982,-153.0,0.0002463,2]
[359120138,1745716245991,-153.0,0.0002463,2]
[359120140,1745716246001,-153.0,0.0002463,2]
[359120142,1745716246011,-153.0,0.0002463,2]
[359120144,1745716246020,-153.0,0.0002463,2]
[359120146,1745716246030,-153.0,0.0002463,2]
[359120147,1745716246039,-153.0,0.0002463,2]
[359120149,1745716246049,-153.0,0.0002463,2]
[359120151,1745716246058,-153.0,0.0002463,2]
[359120153,1745716246068,-153.0,0.0002463,2]
[359120155,1745716246077,-153.0,0.0002463,2]
[359120157,1745716246087,-153.0,0.0002463,2]
[359120159,1745716246098,-153.0,0.0002463,2]
[359120160,1745716246108,-153.0,0.0002463,2]
[359120161,1745716246117,-153.0,0.0002463,2]
[359120163,1745716246127,-153.0,0.0002463,2]
[359120164,1745716246136,-153.0,0.0002463,2]
[359120165,1745716246145,-153.0,0.0002463,2]
[359120166,1745716246155,-153.0,0.0002463,2]
[359120167,1745716246165,-153.0,0.0002463,2]
[359120169,1745716246175,-153.0,0.0002463,2]
[359120171,1745716246185,-153.0,0.0002463,2]
[359120173,1745716246194,-153.0,0.0002463,2]
[359120174,1745716246204,-153.0,0.0002463,2]
[359120176,1745716246213,-153.0,0.0002463,2]
[359120177,1745716246223,-153.0,0.0002463,2]
[359120178,1745716246232,-153.0,0.0002463,2]
[359120179,1745716246243,-153.0,0.0002463,2]
[359120180,1745716246254,-153.0,0.0002463,2]
[359120181,1745716246269,-153.0,0.0002463,2]
[359120182,1745716246283,-153.0,0.0002463,2]
[359120183,1745716246296,-153.0,0.0002463,2]
[359120184,1745716246310,-153.0,0.0002463,2]
[359120185,1745716246324,-153.0,0.0002463,2]
[359120186,1745716246337,-153.0,0.0002463,2]
[359120187,1745716246348,-153.0,0.0002463,2]
[359120188,1745716246359,-153.0,0.0002463,2]
[359120190,1745716246371,-153.0,0.0002463,2]
[359120191,1745716246384,-153.0,0.0002463,2]
[359120192,1745716246396,-15.24110467,0.0002463,2]
[359120193,1745716246653,-200.0,0.00016438,2]
[359120194,1745716246666,-400.0,0.00016438,2]
[359120195,1745716246678,-400.0,0.00016712,2]
[359120196,1745716246689,-365.94,0.00016986,2]
[359120197,1745716246700,-865.73,0.00018356,2]
[359120198,1745716246710,-865.73,0.0001863,2]
[359120199,1745716246721,-865.73,0.00018904,2]
[359120200,1745716246732,-865.73,0.00019178,2]
[359120201,1745716246743,-865.73,0.00019452,2]
[359120202,1745716246755,-865.73,0.00019726,2]
[359120203,1745716246768,-865.73,0.0002,2]
[359120204,1745716246780,-865.73,0.00020273,2]
[359120205,1745716246794,-865.73,0.00020547,2]
[359120206,1745716246806,-137.75889533,0.0002463,2]
[359120207,1745716246819,-153.0,0.0002463,2]
[359120208,1745716246834,-500.0,0.00024657,2]
[359120209,1745716246847,-160.0,0.00024657,2]
[359120210,1745716246860,-200.0,0.00024657,2]
[359120211,1745716246874,-206.0600057,0.00024657,2]
[359120212,1745716246888,-400.0,0.00024657,2]
[359120213,1745716246900,-400.0,0.00024657,2]
[359120214,1745716246911,-400.0,0.00024657,2]
[359120215,1745716246923,-400.0,0.00024657,2]
[359120216,1745716246933,-205.0408845,0.00024657,2]
[359120217,1745716246945,-200.0,0.00024658,2]
[359120218,1745716246956,-380.0,0.00024658,2]
[359120219,1745716246967,-500.0,0.00024658,2]
[359120220,1745716246979,-464.49161848,0.00024658,2]
[359120221,1745716246992,-500.0,0.00024658,2]
[359120222,1745716247006,-1000.0,0.00024689,2]
[359120223,1745716247019,-500.55,0.000247,120]
[359120224,1745716247032,-228.042932,0.000248,7]
[359120225,1745716247043,-151.0,0.000248,7]
[359120226,1745716247054,-160.0,0.000248,3]
[359120227,1745716247068,-151.0,0.000248,7]
[359120228,1745716247079,-151.0,0.000248,7]
[359120229,1745716247090,-134253.466049,0.000248,2]
[359120230,1745716247103,-283.89203113,0.00024809,2]
[359120231,1745716247116,-19179.0665785,0.0002487,2]
[359120232,1745716247128,-19179.0665785,0.00024873,2]
[359120233,1745716247139,-163.402258,0.00024873,3]
[359120234,1745716247150,-33748.27686068,0.0002488,2]
[359120235,1745716247161,-19179.0665785,0.0002488,2]
[359120236,1745716247172,-9025.85186365,0.00024883,2]
[359120237,1745716247187,-1508.33437953,0.00024883,2]
[359120238,1745716247203,-10741.63350978,0.00024883,2]
[359120239,1745716247217,-1456.42958395,0.00024883,2]
[359120240,1745716247265,-19.62934268,0.00024883,2]
[359120241,1745716247525,-257.63357897,0.00020821,2]
[359120242,1745716247539,-608.09642103,0.00020821,2]
[359120243,1745716247551,-865.73,0.00021095,2]
[359120244,1745716247563,-865.73,0.00021369,2]
[359120245,1745716247574,-865.73,0.00021643,2]
[359120246,1745716247585,-865.73,0.00021917,2]
[359120247,1745716247596,-865.73,0.00022191,2]
[359120248,1745716247607,-865.73,0.00022465,2]
[359120249,1745716247618,-865.77778777,0.00022739,2]
[359120250,1745716247630,-478.8747,0.00023455,15]
[359120251,1745716247641,-9055.89074901,0.00024883,2]
[359120252,1745716247654,-1940.50743208,0.00024883,2]
[359120253,1745716247665,-2910.41003127,0.0002489,2]
[359120254,1745716385271,41583.28543676,0.00022,30]
[359120262,1745716830237,1340.0,0.00023,120]
[359121064,1745716909778,270.48331234,0.00021,10]
[359121069,1745717232127,-264.40293,0.00015657,2]
[359121070,1745717232149,-1000.0,0.00016338,2]
[359121071,1745717232172,-287.19059131,0.00016436,2]
[359121131,1745717432255,-300.0,0.00015488,2]
[359121133,1745717432269,-327.0,0.00015488,2]
[359121135,1745717432281,-500.0,0.00015489,2]
[359121137,1745717432292,-500.0,0.00015489,2]
[359121139,1745717432304,-500.0,0.00015489,2]
[359121141,1745717432316,-500.0,0.00015489,2]
[359121144,1745717432327,-500.0,0.00015489,2]
[359121146,1745717432339,-500.0,0.00015489,2]
[359121148,1745717432351,-500.0,0.00015489,2]
[359121150,1745717432363,-500.0,0.00015489,2]
[359121152,1745717432374,-398.31554964,0.00015489,2]
[359121154,1745717432389,-579.87746804,0.00015489,2]
[359121156,1745717432400,-500.0,0.00015489,2]
[359121158,1745717432411,-500.0,0.00015489,2]
[359121160,1745717432422,-500.0,0.00015489,2]
[359121162,1745717432433,-500.0,0.00015489,2]
[359121164,1745717432444,-500.0,0.00015489,2]
[359121166,1745717432455,-500.0,0.00015489,2]
[359121169,1745717432467,-500.0,0.00015489,2]
[359121171,1745717432478,-500.0,0.00015489,2]
[359121173,1745717432489,-500.0,0.00015489,2]
[359121175,1745717432500,-500.0,0.00015489,2]
[359121177,1745717432511,-500.0,0.00015489,2]
[359121179,1745717432522,-500.0,0.00015489,2]
[359121181,1745717432533,-500.0,0.00015489,2]
[359121183,1745717432544,-500.0,0.00015489,2]
[359121186,1745717432555,-641.93812832,0.00015489,2]
[359121188,1745717432566,-500.0,0.00015489,2]
[359121190,1745717432577,-500.0,0.00015489,2]
[359121192,1745717432588,-500.0,0.00015489,2]
[359121194,1745717432599,-500.0,0.00015489,2]
[359121196,1745717432610,-500.0,0.00015489,2]
[359121198,1745717432621,-500.0,0.00015489,2]
[359121200,1745717432632,-500.0,0.00015489,2]
[359121202,1745717432643,-500.0,0.00015489,2]
[359121204,1745717432654,-500.0,0.00015489,2]
[359121206,1745717432665,-500.0,0.00015489,2]
[359121209,1745717432681,-264.66275568,0.00015489,2]
[359121211,1745717432694,-500.0,0.00015489,2]
[359121213,1745717432707,-500.0,0.00015489,2]
[359121215,1745717432718,-500.0,0.00015489,2]
[359121217,1745717432730,-500.0,0.00015489,2]
[359121220,1745717432742,-500.0,0.00015489,2]
[359121222,1745717432754,-500.0,0.00015489,2]
[359121224,1745717432765,-500.0,0.00015489,2]
[359121226,1745717432776,-500.0,0.00015489,2]
[359121228,1745717432788,-500.0,0.00015489,2]
[359121230,1745717432800,-500.0,0.00015489,2]
[359121233,1745717432811,-467.30292426,0.00015489,2]
[359121235,1745717432823,-620.0,0.00015489,2]
[359121237,1745717432835,-500.0,0.00015489,2]
[359121239,1745717432846,-500.0,0.00015489,2]
[359121241,1745717432857,-500.0,0.00015489,2]
[359121243,1745717432868,-500.0,0.00015489,2]
[359121245,1745717432879,-500.0,0.00015489,2]
[359121248,1745717432892,-500.0,0.00015489,2]
[359121250,1745717432903,-500.0,0.00015489,2]
[359121252,1745717432914,-500.0,0.00015489,2]
[359121254,1745717432925,-189.22066363,0.00015489,2]
[359121256,1745717432939,-310.77933637,0.00015489,2]
[359121259,1745717432951,-500.0,0.00015489,2]
[359121261,1745717432962,-1961.76344613,0.0001549,2]
[359121298,1745717438251,-2561.80641442,0.0001549,2]
[359121308,1745717438338,-20376.43013945,0.0001549,2]
[359121315,1745717438579,-265.06076366,0.00016436,2]
[359121316,1745717438597,-500.0,0.00016436,2]
[359121317,1745717438608,-432.76001071,0.00016436,2]
[359121318,1745717438617,-236.18371661,0.00016436,2]
[359121319,1745717438627,-551.42830982,0.00016436,2]
[359121320,1745717438636,-500.0,0.00016436,2]
[359121321,1745717438646,-165.32860162,0.00016436,2]
[359121322,1745717438656,-400.0,0.00016438,2]
[359121323,1745717438666,-200.0,0.00016438,2]
[359121324,1745717438676,-500.0,0.00016438,2]
[359121325,1745717438686,-386.76,0.00016438,2]
[359121326,1745717438696,-500.0,0.00016438,2]
[359121327,1745717438705,-400.0,0.00016438,2]
[359121328,1745717438715,-400.0,0.00016438,2]
[359121329,1745717438725,-400.0,0.00016438,2]
[359121330,1745717438734,-249.35948457,0.00016438,2]
[359121331,1745717438744,-200.0,0.00016438,2]
[359121332,1745717438754,-400.0,0.00016438,2]
[359121333,1745717438763,-189.74,0.00016438,2]
[359121334,1745717438773,-500.0,0.00016438,2]
[359121335,1745717438782,-400.0,0.00016438,2]
[359121336,1745717438792,-400.0,0.00016438,2]
[359121337,1745717438802,-400.0,0.00016438,2]
[359121338,1745717438811,-400.0,0.00016438,2]
[359121339,1745717438821,-400.0,0.00016438,2]
[359121340,1745717438830,-200.0,0.00016438,2]
[359121341,1745717438840,-400.0,0.00016438,2]
[359121342,1745717438850,-400.0,0.00016438,2]
[359121343,1745717438860,-400.0,0.00016438,2]
[359121344,1745717438869,-319.00365676,0.00016438,2]
[359121345,1745717438879,-400.0,0.00016438,2]
[359121346,1745717438889,-500.0,0.00016438,2]
[359121347,1745717438899,-200.0,0.00016438,2]